fUST/lending_fUST_20250818
["ID","MTS","AMOUNT","RATE_DAILY","PERIOD"]
[379961997,1755450639861,-480.0,0.00019726,2]
[379961999,1755450639871,-480.0,0.00019726,2]
[379962001,1755450639880,-741.01,0.00019726,2]
[379962003,1755450639889,-356.48,0.00019726,2]
[379962005,1755450639899,-480.0,0.00019726,2]
[379962007,1755450639908,-346.33,0.00019726,2]
[379962009,1755450639918,-480.0,0.00019726,2]
[379962011,1755450639927,-480.0,0.00019726,2]
[379962013,1755450639937,-279.22334,0.00019863,2]
[379962015,1755450639946,-9095.2049047,0.000199,2]
[379962018,1755450639956,-373.27859013,0.0002,2]
[379962020,1755450639965,-1037.09,0.0002,2]
[379962022,1755450639975,-480.0,0.0002,2]
[379962024,1755450639984,-480.0,0.0002,2]
[379962026,1755450639994,-520.18411631,0.0002,2]
[379962029,1755450640005,-369.2332187,0.0002,2]
[379962031,1755450640014,-480.0,0.0002,2]
[379962033,1755450640024,-480.0,0.0002,2]
[379962035,1755450640033,-480.0,0.0002,2]
[379962037,1755450640048,-480.0,0.0002,2]
[379962038,1755450640058,-741.01,0.0002,2]
[379962040,1755450640069,-480.0,0.0002,2]
[379962042,1755450640080,-480.0,0.0002,2]
[379962044,1755450640090,-480.0,0.0002,2]
[379962046,1755450640101,-500.0,0.00020021,2]
[379962048,1755450640112,-471.137337,0.00020187,2]
[379962050,1755450640124,-1037.09,0.00020273,2]
[379962051,1755450640136,-480.0,0.00020273,2]
[379962053,1755450640148,-480.0,0.00020273,2]
[379962055,1755450640159,-480.0,0.00020273,2]
[379962057,1755450640170,-480.0,0.00020273,2]
[379962059,1755450640179,-480.0,0.00020273,2]
[379962061,1755450640189,-480.0,0.00020273,2]
[379962063,1755450640200,-741.01,0.00020273,2]
[379962065,1755450640210,-480.0,0.00020273,2]
[379962067,1755450640220,-480.0,0.00020273,2]
[379962069,1755450640229,-480.0,0.00020273,2]
[379962071,1755450640239,-500.0,0.00020397,2]
[379962073,1755450640248,-9095.20490448,0.00020403,2]
[379962075,1755450640257,-313.14,0.00020438,3]
[379962077,1755450640267,-1560.32,0.00020438,3]
[379962079,1755450640276,-780.16,0.00020438,3]
[379962081,1755450640286,-841.82,0.00020438,3]
[379962083,1755450640295,-420.9,0.00020438,3]
[379962085,1755450640304,-420.9,0.00020438,3]
[379962087,1755450640313,-924.53095384,0.00020485,2]
[379962089,1755450640323,-12682.46447135,0.00020521,2]
[379962091,1755450640332,-528.48506731,0.00020521,2]
[379962093,1755450640341,-160.0,0.00020521,2]
[379962095,1755450640351,-417.15472785,0.00020521,2]
[379962097,1755450640360,-160.0,0.00020521,2]
[379962099,1755450640370,-160.0,0.00020521,2]
[379962101,1755450640379,-232.1512529,0.00020521,2]
[379962103,1755450640388,-160.0,0.00020521,2]
[379962105,1755450640397,-216.83204348,0.00020521,2]
[379962107,1755450640406,-215.71995163,0.00020521,2]
[379962109,1755450640416,-843.71309931,0.00020521,2]
[379962111,1755450640425,-375.77065697,0.00020521,2]
[379962113,1755450640435,-160.0,0.00020521,2]
[379962115,1755450640444,-160.0,0.00020522,2]
[379962117,1755450640454,-500.0,0.00020523,2]
[379962119,1755450640464,-500.0,0.00020523,2]
[379962121,1755450640473,-500.0,0.00020523,2]
[379962123,1755450640483,-500.0,0.00020523,2]
[379962125,1755450640492,-500.0,0.00020523,2]
[379962127,1755450640501,-1037.09,0.00020547,2]
[379962129,1755450640511,-480.0,0.00020547,2]
[379962131,1755450640520,-480.0,0.00020547,2]
[379962132,1755450640529,-480.0,0.00020547,2]
[379962134,1755450640539,-480.0,0.00020547,2]
[379962136,1755450640549,-480.0,0.00020547,2]
[379962152,1755450640671,-480.0,0.00020547,2]
[379962155,1755450640706,-741.01,0.00020547,2]
[379962157,1755450640717,-480.0,0.00020547,2]
[379962159,1755450640728,-480.0,0.00020547,2]
[379962161,1755450640739,-480.0,0.00020547,2]
[379962163,1755450640749,-1000.0,0.00020569,2]
[379962165,1755450640761,-330.79422648,0.00020601,2]
[379962167,1755450640773,-220.64,0.00020656,2]
[379962169,1755450640785,-420.0,0.00020782,2]
[379962171,1755450640794,-1037.09,0.00020821,2]
[379962173,1755450640804,-480.0,0.00020821,2]
[379962175,1755450640813,-480.0,0.00020821,2]
[379962177,1755450640822,-480.0,0.00020821,2]
[379962179,1755450640832,-480.0,0.00020821,2]
[379962181,1755450640842,-480.0,0.00020821,2]
[379962183,1755450640851,-480.0,0.00020821,2]
[379962184,1755450640860,-741.01,0.00020821,2]
[379962185,1755450640869,-480.0,0.00020821,2]
[379962186,1755450640879,-480.0,0.00020821,2]
[379962187,1755450640888,-480.0,0.00020821,2]
[379962188,1755450640897,-1098.0,0.00020882,2]
[379962189,1755450640906,-9095.20490448,0.00020907,2]
[379962190,1755450640915,-3000.0,0.00021,2]
[379962191,1755450640924,-3000.0,0.0002101,2]
[379962192,1755450640933,-3000.0,0.0002102,2]
[379962193,1755450640942,-3000.0,0.0002103,2]
[379962194,1755450640951,-3000.0,0.0002104,2]
[379962195,1755450640960,-3000.0,0.0002105,2]
[379962196,1755450640970,-3000.0,0.0002106,2]
[379962197,1755450640979,-3000.0,0.0002107,2]
[379962198,1755450640988,-1000.0,0.0002107,2]
[379962199,1755450640997,-1000.0,0.0002107,2]
[379962200,1755450641007,-1000.0,0.0002107,2]
[379962201,1755450641018,-1000.0,0.0002107,2]
[379962202,1755450641027,-3000.0,0.0002108,2]
[379962203,1755450641036,-3000.0,0.0002109,2]
[379962204,1755450641045,-160.0,0.00021092,2]
[379962205,1755450641056,-1037.09,0.00021095,2]
[379962206,1755450641065,-434.4268575,0.00021095,2]
[379962207,1755450641074,-480.0,0.00021095,2]
[379962208,1755450641083,-480.0,0.00021095,2]
[379962209,1755450641094,-474.18,0.00021095,2]
[379962210,1755450641105,-480.0,0.00021095,2]
[379962211,1755450641113,-480.0,0.00021095,2]
[379962212,1755450641122,-741.01,0.00021095,2]
[379962214,1755450641131,-480.0,0.00021095,2]
[379962215,1755450641140,-480.0,0.00021095,2]
[379962216,1755450641149,-480.0,0.00021095,2]
[379962217,1755450641158,-3000.0,0.000211,2]
[379962219,1755450641168,-3000.0,0.0002111,2]
[379962221,1755450641177,-3000.0,0.0002112,2]
[379962223,1755450641186,-3000.0,0.0002113,2]
[379962225,1755450641195,-3000.0,0.0002114,2]
[379962227,1755450641205,-500.0,0.00021143,2]
[379962229,1755450641214,-500.0,0.00021143,2]
[379962231,1755450641223,-500.0,0.00021143,2]
[379962233,1755450641232,-3000.0,0.0002115,2]
[379962235,1755450641241,-3000.0,0.0002116,2]
[379962237,1755450641251,-3000.0,0.0002117,2]
[379962239,1755450641260,-3000.0,0.0002118,2]
[379962241,1755450641269,-3000.0,0.0002119,2]
[379962243,1755450641278,-3000.0,0.000212,2]
[379962245,1755450641287,-3150.0,0.0002121,2]
[379962247,1755450641297,-408.0,0.00021303,2]
[379962249,1755450641306,-422.367,0.00021303,2]
[379962251,1755450641315,-1037.09,0.00021369,2]
[379962253,1755450641324,-480.0,0.00021369,2]
[379962255,1755450641334,-480.0,0.00021369,2]
[379962257,1755450641347,-480.0,0.00021369,2]
[379962259,1755450641356,-480.0,0.00021369,2]
[379962261,1755450641365,-741.01,0.00021369,2]
[379962263,1755450641374,-480.0,0.00021369,2]
[379962265,1755450641383,-480.0,0.00021369,2]
[379962267,1755450641393,-480.0,0.00021369,2]
[379962269,1755450641401,-9095.20490448,0.0002141,2]
[379962271,1755450641411,-500.0,0.00021444,2]
[379962273,1755450641420,-500.0,0.00021444,2]
[379962275,1755450641430,-500.0,0.00021444,2]
[379962277,1755450641439,-500.0,0.0002145,2]
[379962279,1755450641448,-159.60508025,0.0002145,2]
[379962281,1755450641458,-500.0,0.0002145,2]
[379962283,1755450641468,-158.60123121,0.0002145,2]
[379962285,1755450641477,-158.20000211,0.0002145,2]
[379962287,1755450641486,-188.65528262,0.0002145,2]
[379962289,1755450641495,-500.0,0.0002145,2]
[379962291,1755450641504,-158.61449762,0.0002145,2]
[379962293,1755450641514,-500.0,0.00021482,2]
[379962295,1755450641522,-338.40442225,0.00021482,2]
[379962297,1755450641531,-500.0,0.00021482,2]
[379962299,1755450641540,-500.0,0.00021482,2]
[379962301,1755450641550,-500.0,0.00021482,2]
[379962303,1755450641559,-340.84167788,0.00021482,2]
[379962305,1755450641569,-248.73521794,0.00021482,2]
[379962307,1755450641578,-500.0,0.00021482,2]
[379962309,1755450641587,-500.0,0.00021482,2]
[379962311,1755450641597,-720.0,0.00021506,20]
[379962313,1755450641606,-330.95,0.00021595,2]
[379962315,1755450641615,-220.112,0.00021596,2]
[379962317,1755450641624,-289.974,0.00021596,2]
[379962319,1755450641633,-150.0,0.00021596,2]
[379962321,1755450641642,-150.075,0.00021596,2]
[379962323,1755450641655,-150.0,0.00021596,2]
[379962325,1755450641664,-176.825,0.00021596,2]
[379962327,1755450641673,-972.0,0.00021596,2]
[379962329,1755450641683,-637.0,0.00021596,2]
[379962331,1755450641695,-2153.0,0.00021596,2]
[379962333,1755450641707,-1000.0,0.00021618,2]
[379962335,1755450641716,-260.0,0.0002164,2]
[379962337,1755450641727,-1037.09,0.00021643,2]
[379962339,1755450641737,-480.0,0.00021643,2]
[379962341,1755450641746,-480.0,0.00021643,2]
[379962343,1755450641756,-480.0,0.00021643,2]
[379962345,1755450641765,-480.0,0.00021643,2]
[379962347,1755450641775,-741.01,0.00021643,2]
[379962349,1755450641784,-480.0,0.00021643,2]
[379962351,1755450641794,-480.0,0.00021643,2]
[379962354,1755450641806,-480.0,0.00021643,2]
[379962355,1755450641816,-924.53095384,0.00021891,2]
[379962357,1755450641825,-9095.20490448,0.00021913,2]
[379962359,1755450641834,-1037.09,0.00021917,2]
[379962361,1755450641843,-480.0,0.00021917,2]
[379962363,1755450641853,-480.0,0.00021917,2]
[379962365,1755450641863,-480.0,0.00021917,2]
[379962367,1755450641872,-480.0,0.00021917,2]
[379962369,1755450641882,-741.01,0.00021917,2]
[379962371,1755450641892,-480.0,0.00021917,2]
[379962373,1755450641901,-480.0,0.00021917,2]
[379962375,1755450641911,-175.76584977,0.00021917,2]
[379962377,1755450641920,-158.62313276,0.00021973,2]
[379962379,1755450641929,-500.0,0.00021973,2]
[379962382,1755450641940,-217.04616223,0.00021973,2]
[379962383,1755450641950,-500.0,0.00021973,2]
[379962385,1755450641959,-500.0,0.00021973,2]
[379962387,1755450641968,-501.74670769,0.00021973,2]
[379962389,1755450641978,-500.0,0.00021973,2]
[379962391,1755450641987,-500.0,0.00021973,2]
[379962393,1755450641997,-500.0,0.00021992,2]
[379962395,1755450642009,-1000.0,0.00021998,2]
[379962397,1755450642019,-162.97,0.00022,7]
[379962399,1755450642030,-12682.46447135,0.00022,7]
[379962401,1755450642039,-19985.84,0.00022,7]
[379962403,1755450642049,-30131.92,0.00022,2]
[379962405,1755450642058,-5158.64,0.00022,7]
[379962407,1755450642067,-375.77065697,0.00022,7]
[379962409,1755450642076,-417.15472785,0.00022,7]
[379962411,1755450642086,-215.71995163,0.00022,7]
[379962413,1755450642095,-160.0,0.00022,7]
[379962415,1755450642104,-500.0,0.0002203,2]
[379962417,1755450642114,-160.63757412,0.0002203,2]
[379962419,1755450642123,-500.0,0.0002203,2]
[379962421,1755450642133,-500.0,0.0002203,2]
[379962423,1755450642142,-816.985,0.00022067,2]
[379962425,1755450642150,-2200.0,0.00022067,2]
[379962427,1755450642159,-224.69,0.000221,2]
[379962429,1755450642168,-360.0,0.00022188,2]
[379962431,1755450642177,-1037.09,0.00022191,2]
[379962433,1755450642186,-480.0,0.00022191,2]
[379962435,1755450642196,-207.07888617,0.00022191,2]
[379962437,1755450642205,-480.0,0.00022191,2]
[379962439,1755450642214,-480.0,0.00022191,2]
[379962441,1755450642224,-741.01,0.00022191,2]
[379962443,1755450642233,-480.0,0.00022191,2]
[379962445,1755450642242,-480.0,0.00022191,2]
[379962447,1755450642251,-255.0,0.00022266,2]
[379962449,1755450642260,-178.89066111,0.00022302,2]
[379962451,1755450642270,-570.945,0.00022302,2]
[379962452,1755450642279,-9095.20490448,0.00022416,2]
[379962454,1755450642289,-1037.09,0.00022465,2]
[379962456,1755450642298,-480.0,0.00022465,2]
[379962458,1755450642307,-383.33651036,0.00022465,2]
[379962460,1755450642317,-480.0,0.00022465,2]
[379962462,1755450642326,-741.01,0.00022465,2]
[379962464,1755450642335,-480.0,0.00022465,2]
[379962466,1755450642344,-480.0,0.00022465,2]
[379962468,1755450642353,-441.27,0.00022534,2]
[379962470,1755450642363,-940.72262656,0.00022546,2]
[379962472,1755450642372,-4142.72343457,0.00022599,2]
[379962474,1755450642381,-500.0,0.00022627,8]
[379962476,1755450642391,-160.1676773,0.0002263,2]
[379962478,1755450642401,-587.0,0.0002265,2]
[379962480,1755450642410,-151.0,0.00022678,4]
[379962482,1755450642419,-460.0,0.00022736,2]
[379962484,1755450642430,-8564.08284501,0.00022739,7]
[379962486,1755450642439,-1037.09,0.00022739,2]
[379962488,1755450642449,-480.0,0.00022739,2]
[379962490,1755450642458,-480.0,0.00022739,2]
[379962492,1755450642468,-741.01,0.00022739,2]
[379962494,1755450642477,-586.56655159,0.00022739,2]
[379962496,1755450642486,-480.0,0.00022739,2]
[379962498,1755450642495,-282.37552865,0.00022877,8]
[379962500,1755450642505,-9095.20490448,0.0002292,2]
[379962502,1755450642514,-160.0,0.00023,2]
[379962504,1755450642524,-1037.09,0.00023013,2]
[379962506,1755450642533,-480.0,0.00023013,2]
[379962508,1755450642543,-480.0,0.00023013,2]
[379962510,1755450642554,-741.01,0.00023013,2]
[379962512,1755450642563,-480.0,0.00023013,2]
[379962514,1755450642573,-560.0,0.00023283,2]
[379962516,1755450642584,-1037.09,0.00023287,2]
[379962518,1755450642594,-480.0,0.00023287,2]
[379962520,1755450642603,-480.0,0.00023287,2]
[379962522,1755450642612,-741.01,0.00023287,2]
[379962524,1755450642624,-480.0,0.00023287,2]
[379962526,1755450642633,-279.22334,0.00023288,2]
[379962528,1755450642643,-151.0,0.00023296,5]
[379962530,1755450642652,-924.53095384,0.00023298,2]
[379962532,1755450642662,-30131.92,0.000234,2]
[379962534,1755450642671,-5158.64,0.000234,7]
[379962536,1755450642681,-375.77065697,0.000234,7]
[379962538,1755450642690,-417.15472785,0.000234,7]
[379962540,1755450642699,-215.71995163,0.000234,7]
[379962542,1755450642708,-9095.20490448,0.00023423,2]
[379962544,1755450642717,-551.59,0.00023473,2]
[379962546,1755450642726,-19985.84,0.000235,7]
[379962548,1755450642735,-12682.46447135,0.000235,7]
[379962550,1755450642744,-1037.09,0.00023561,2]
[379962552,1755450642753,-480.0,0.00023561,2]
[379962554,1755450642763,-480.0,0.00023561,2]
[379962556,1755450642772,-741.01,0.00023561,2]
[379962558,1755450642781,-480.0,0.00023561,2]
[379962560,1755450642790,-864.0,0.00023657,20]
[379962562,1755450642799,-660.0,0.00023831,2]
[379962564,1755450642809,-1037.09,0.00023835,2]
[379962566,1755450642818,-480.0,0.00023835,2]
[379962568,1755450642827,-480.0,0.00023835,2]
[379962570,1755450642837,-741.01,0.00023835,2]
[379962572,1755450642847,-480.0,0.00023835,2]
[379962573,1755450642856,-1012.47537114,0.000239,2]
[379962575,1755450642865,-151.0,0.00023913,5]
[379962577,1755450642875,-9095.20490448,0.00023926,2]
[379962579,1755450642885,-843.71309931,0.00024,7]
[379962581,1755450642895,-232.1512529,0.00024,7]
[379962583,1755450642904,-160.0,0.00024,7]
[379962585,1755450642914,-160.0,0.00024,7]
[379962587,1755450642923,-528.48506731,0.00024,7]
[379962589,1755450642933,-216.83204348,0.00024,7]
[379962591,1755450642943,-215.71995163,0.00024,3]
[379962593,1755450642952,-160.0,0.00024,7]
[379962596,1755450642962,-1037.09,0.00024109,2]
[379962597,1755450642972,-480.0,0.00024109,2]
[379962599,1755450642981,-480.0,0.00024109,2]
[379962601,1755450642991,-741.01,0.00024109,2]
[379962603,1755450643001,-480.0,0.00024109,2]
[379962605,1755450643021,-151.0,0.000242,9]
[379962608,1755450643031,-151.0,0.000243,7]
[379962609,1755450643040,-408.0,0.00024303,2]
[379962611,1755450643051,-408.0,0.00024303,2]
[379962614,1755450643061,-760.0,0.00024379,2]
[379962616,1755450643070,-1037.09,0.00024383,2]
[379962617,1755450643079,-480.0,0.00024383,2]
[379962620,1755450643091,-480.0,0.00024383,2]
[379962621,1755450643101,-741.01,0.00024383,2]
[379962623,1755450643110,-480.0,0.00024383,2]
[379962625,1755450643119,-661.91,0.00024412,2]
[379962627,1755450643128,-9095.20490448,0.00024429,2]
[379962629,1755450643139,-207.25,0.00024448,7]
[379962631,1755450643150,-155.2,0.00024485,7]
[379962633,1755450643160,-151.98,0.00024485,7]
[379962635,1755450643170,-155.2,0.00024485,7]
[379962638,1755450643180,-166.15,0.00024485,7]
[379962640,1755450643189,-172.7,0.00024485,7]
[379962641,1755450643200,-151.0,0.00024531,5]
[379962643,1755450643209,-155.2,0.00024585,7]
[379962645,1755450643218,-151.98,0.00024585,7]
[379962647,1755450643228,-155.2,0.00024585,7]
[379962649,1755450643237,-166.15,0.00024585,7]
[379962651,1755450643247,-172.7,0.00024585,7]
[379962653,1755450643256,-150.0,0.00024596,2]
[379962655,1755450643266,-150.0,0.00024596,2]
[379962657,1755450643275,-972.0,0.00024596,2]
[379962659,1755450643284,-637.0,0.00024596,2]
[379962661,1755450643293,-2153.0,0.00024596,2]
[379962663,1755450643302,-162.97,0.000246,7]
[379962665,1755450643312,-224.69,0.000246,2]
[379962667,1755450643321,-1037.09,0.00024657,2]
[379962669,1755450643330,-480.0,0.00024657,2]
[379962671,1755450643339,-480.0,0.00024657,2]
[379962673,1755450643349,-741.01,0.00024657,2]
[379962675,1755450643358,-480.0,0.00024657,2]
[379962677,1755450643367,-200.0,0.00024658,15]
[379962679,1755450643377,-155.2,0.00024685,7]
[379962681,1755450643387,-151.98,0.00024685,7]
[379962683,1755450643397,-155.2,0.00024685,7]
[379962685,1755450643406,-166.16586478,0.00024685,7]
[379962687,1755450643416,-172.7,0.00024685,7]
[379962689,1755450643425,-823.0,0.00024687,2]
[379962691,1755450643434,-924.53095384,0.00024704,2]
[379962693,1755450643444,-150.0,0.00024773,2]
[379962695,1755450643454,-150.0,0.00024773,2]
[379962697,1755450643465,-155.2,0.00024785,7]
[379962699,1755450643475,-151.98,0.00024785,7]
[379962701,1755450643484,-155.2,0.00024785,7]
[379962703,1755450643493,-172.7,0.00024785,7]
[379962705,1755450643502,-1000.0,0.000248,2]
[379962707,1755450643511,-1000.0,0.000248,2]
[379962709,1755450643521,-1000.0,0.000248,2]
[379962711,1755450643530,-1000.0,0.000248,2]
[379962713,1755450643539,-1000.0,0.000248,2]
[379962715,1755450643548,-1000.0,0.000248,2]
[379962717,1755450643557,-67500.3786809,0.000248,2]
[379962719,1755450643566,-3468.19811706,0.00024804,2]
[379962721,1755450643576,-25680.8929991,0.00024871,2]
[379962723,1755450643586,-500.0,0.00024873,2]
[379962725,1755450643595,-573.29265701,0.00024873,2]
[379962727,1755450643604,-500.0,0.00024873,2]
[379962729,1755450643613,-158.61775077,0.00024873,2]
[379962731,1755450643623,-500.0,0.00024873,2]
[379962733,1755450643632,-500.17107343,0.00024873,2]
[379962735,1755450643642,-500.0,0.00024873,2]
[379962737,1755450643651,-500.0,0.00024873,2]
[379962739,1755450643660,-500.0,0.00024873,2]
[379962741,1755450643669,-500.0,0.00024873,2]
[379962743,1755450643678,-160.62292884,0.00024873,2]
[379962745,1755450643688,-500.0,0.00024873,2]
[379962747,1755450643698,-258.67006152,0.00024873,2]
[379962749,1755450643707,-415.34722731,0.00024873,2]
[379962751,1755450643716,-340.42651408,0.00024873,2]
[379962753,1755450643726,-500.0,0.00024873,2]
[379962755,1755450643735,-500.0,0.00024873,2]
[379962757,1755450643744,-168.89872184,0.00024873,2]
[379962759,1755450643754,-500.0,0.00024873,2]
[379962762,1755450643764,-500.0,0.00024873,2]
[379962764,1755450643774,-158.62980632,0.00024873,2]
[379962766,1755450643784,-560.68640199,0.00024873,2]
[379962768,1755450643793,-500.0,0.00024873,2]
[379962770,1755450643802,-500.0,0.00024873,2]
[379962771,1755450643811,-500.0,0.00024873,2]
[379962773,1755450643821,-500.0,0.00024873,2]
[379962776,1755450643830,-500.0,0.00024873,2]
[379962777,1755450643840,-500.22350934,0.00024873,2]
[379962779,1755450643849,-500.0,0.00024873,2]
[379962781,1755450643858,-237.57852605,0.00024873,2]
[379962783,1755450643868,-500.0,0.00024873,2]
[379962785,1755450643877,-521.8552445,0.00024873,2]
[379962787,1755450643886,-500.0,0.00024873,2]
[379962789,1755450643896,-500.0,0.00024873,2]
[379962791,1755450643905,-500.0,0.00024873,2]
[379962793,1755450643914,-500.0,0.00024873,2]
[379962795,1755450643923,-500.0,0.00024873,2]
[379962797,1755450643933,-500.0,0.00024873,2]
[379962799,1755450643942,-500.0,0.00024873,2]
[379962801,1755450643952,-500.99412831,0.00024873,2]
[379962803,1755450643961,-500.0,0.00024873,2]
[379962805,1755450643971,-500.0,0.00024873,2]
[379962807,1755450643979,-500.0,0.00024873,2]
[379962809,1755450643988,-500.0,0.00024873,2]
[379962811,1755450643997,-500.0,0.00024873,2]
[379962813,1755450644008,-500.0,0.00024873,2]
[379962815,1755450644018,-500.0,0.00024873,2]
[379962817,1755450644027,-155.2,0.00024885,7]
[379962819,1755450644036,-151.98,0.00024885,7]
[379962821,1755450644045,-155.2,0.00024885,7]
[379962822,1755450644055,-172.7,0.00024885,7]
[379962824,1755450644065,-3552.65150952,0.0002489,2]
[379962826,1755450644074,-150.0,0.00024897,30]
[379962828,1755450644083,-30131.92,0.000249,2]
[379962830,1755450644094,-5158.64,0.000249,7]
[379962832,1755450644104,-834711.351039,0.000249,2]
[379962834,1755450644114,-293.7943279,0.00024904,2]
[379962836,1755450644123,-431.9864578,0.00024904,2]
[379962838,1755450644134,-431.9864578,0.00024904,2]
[379962840,1755450644144,-431.9864578,0.00024904,2]
[379962842,1755450644154,-431.9864578,0.00024904,2]
[379962844,1755450644165,-431.9864578,0.00024904,2]
[379962857,1755450644174,-772.8401323,0.00024904,2]
[379962861,1755450644302,-860.0,0.00024927,2]
[379962863,1755450644311,-1037.09,0.00024931,2]
[379962865,1755450644320,-480.0,0.00024931,2]
[379962867,1755450644330,-493.88762099,0.00024931,2]
[379962869,1755450644339,-741.01,0.00024931,2]
[379962871,1755450644348,-480.0,0.00024931,2]
[379962873,1755450644357,-166.0,0.00024932,7]
[379962875,1755450644367,-9095.20490448,0.00024933,2]
[379962877,1755450644377,-155.2,0.00024985,7]
[379962879,1755450644387,-151.98,0.00024985,7]
[379962881,1755450644396,-155.2,0.00024985,7]
[379962883,1755450644405,-172.75,0.00024985,7]
[379962884,1755450644414,-19985.84,0.00025,7]
[379962886,1755450644424,-1998.540007,0.00025,5]
[379962888,1755450644433,-843.71309931,0.00025,7]
[379962891,1755450644443,-232.1512529,0.00025,7]
[379962892,1755450644452,-375.77065697,0.00025,7]
[379962894,1755450644462,-417.15472785,0.00025,7]
[379962896,1755450644471,-528.48506731,0.00025,7]
[379962899,1755450644480,-216.83204348,0.00025,7]
[379962900,1755450644490,-215.71995163,0.00025,7]
[379962902,1755450644499,-203.811104,0.00025,2]
[379962904,1755450644508,-166.0,0.00025,7]
[379962906,1755450644517,-259.67777709,0.00025003,2]
[379962908,1755450644526,-186.0,0.00025028,10]
[379962910,1755450644535,-3468.198117,0.00025059,2]
[379962912,1755450644545,-155.2,0.00025085,7]
[379962914,1755450644555,-151.98,0.00025085,7]
[379962916,1755450644564,-155.21,0.00025085,7]
[379962918,1755450644574,-12682.46447135,0.000251,7]
[379962920,1755450644583,-151.0,0.00025148,6]
[379962922,1755450644593,-155.2,0.00025185,7]
[379962924,1755450644603,-151.98,0.00025185,7]
[379962926,1755450644612,-1037.09,0.00025205,2]
[379962928,1755450644622,-333.73955311,0.00025205,2]
[379962930,1755450644631,-741.01,0.00025205,2]
[379962932,1755450644640,-480.0,0.00025205,2]
[379962934,1755450644650,-155.2,0.00025285,7]
[379962936,1755450644660,-151.98,0.00025285,7]
[379962938,1755450644670,-397.0,0.000253,12]
[379962940,1755450644680,-3468.198117,0.00025314,2]
[379962942,1755450644689,-300.0,0.00025321,2]
[379962944,1755450644699,-250.0,0.00025321,2]
[379962946,1755450644708,-772.22,0.00025351,2]
[379962948,1755450644718,-168.0,0.00025359,2]
[379962950,1755450644728,-155.2,0.00025385,7]
[379962952,1755450644738,-151.98,0.00025385,7]
[379962954,1755450644747,-168.0,0.00025412,2]
[379962956,1755450644756,-1108.34470804,0.00025421,2]
[379962958,1755450644766,-1000.0,0.00025421,2]
[379962960,1755450644776,-500.0,0.00025421,2]
[379962962,1755450644786,-1000.0,0.00025421,2]
[379962964,1755450644795,-500.0,0.00025421,2]
[379962966,1755450644804,-168.0,0.00025424,2]
[379962968,1755450644814,-9095.20490448,0.00025436,3]
[379962970,1755450644824,-356.0,0.00025451,2]
[379962972,1755450644834,-960.0,0.00025475,2]
[379962974,1755450644843,-1037.18476896,0.00025479,2]
[379962976,1755450644853,-741.19267092,0.00025479,2]
[379962978,1755450644863,-183.16437086,0.00025479,2]
[379962980,1755450644872,-155.2,0.00025485,7]
[379962982,1755450644881,-151.98,0.00025485,7]
[379962983,1755450644891,-12682.46447135,0.000255,3]
[379962986,1755450644901,-160.0,0.000255,3]